bitfinex-derivatives/quotes_SOLF0:USTF0_20241029
["timestamp","ask_amount","ask_price","bid_price","bid_amount"]
[1730234426377,14.0950178,178.19,178.11,13.48052923]
[1730234426674,14.0950178,178.19,178.13,13.48052923]
[1730234426675,7.0,178.18,178.13,13.48052923]
[1730234426864,1.3265,178.19,178.13,13.48052923]
[1730234427068,2.79489944,178.21,178.15,13.48052923]
[1730234427377,7.0,178.2,178.15,13.48052923]
[1730234427772,5.60139944,178.21,178.17,2.8069]
[1730234427977,7.0,178.21,178.15,13.48052923]
[1730234428476,7.0,178.21,178.2,2.8065]
[1730234428867,7.0,178.21,178.15,13.48052923]
[1730234429067,7.0,178.21,178.17,2.8068]
[1730234429671,2.8066,178.2,178.17,2.8068]
[1730234430069,7.0,178.21,178.18,2.8068]
[1730234430369,9.8064,178.21,178.18,2.8068]
[1730234431272,2.8066,178.2,178.17,2.8069]
[1730234431472,7.0,178.21,178.13,13.48052923]
[1730234431877,7.0,178.21,178.15,13.48052923]
[1730234432775,13.98262965,178.23,178.15,13.48052923]
[1730234433084,13.98262965,178.23,178.2,2.8064]
[1730234434480,13.98262965,178.23,178.21,2.8063]
[1730234435068,2.4867,178.31,178.2,13.48052923]
[1730234435274,2.8057,178.26,178.23,2.806]
[1730234436680,2.8057,178.25,178.23,2.806]
[1730234437671,2.8057,178.25,178.22,2.8061]
[1730234439481,2.8057,178.25,178.23,2.806]
[1730234442085,13.48052923,178.28,178.18,13.48052923]
[1730234442280,2.8059,178.24,178.18,13.48052923]
[1730234442476,2.77046763,178.23,178.15,13.48052923]
[1730234442675,13.48052923,178.25,178.15,13.48052923]
[1730234442879,6.68,178.24,178.15,13.48052923]
[1730234443182,2.740421,178.23,178.15,13.48052923]
[1730234443384,2.740421,178.23,178.2,2.8065]
[1730234443771,2.740421,178.23,178.15,13.48052923]
[1730234443982,2.8063,178.22,178.15,13.48052923]
[1730234444580,2.8063,178.22,178.19,2.8066]
[1730234445086,4.039221,178.23,178.15,13.48052923]
[1730234445087,13.48052923,178.21,178.15,2.8072]
[1730234445286,15.99942923,178.21,178.15,2.8072]
[1730234445491,13.48052923,178.17,178.07,13.48052923]
[1730234445688,6.68,178.16,178.11,2.8078]
[1730234446187,6.68,178.16,178.12,2.8077]
[1730234446395,13.48052923,178.19,178.09,13.48052923]
[1730234446595,6.68,178.18,178.09,13.48052923]
[1730234448287,2.8071,178.16,178.13,2.8075]
[1730234448592,6.68,178.18,178.09,13.48052923]
[1730234448894,2.8076,178.14,178.11,2.8079]
[1730234451194,13.48052923,178.17,178.11,2.8079]
[1730234451395,2.8076,178.13,178.11,2.8079]
[1730234452402,2.8076,178.13,178.1,2.8079]
[1730234452791,13.48052923,178.15,178.05,13.48052923]
[1730234452989,2.8079,178.12,178.05,13.48052923]
[1730234453396,2.84282776,178.14,178.07,13.48052923]
[1730234453593,2.5189,178.21,178.11,13.48052923]
[1730234453594,17.62363369,178.2,178.11,13.48052923]
[1730234453794,7.694,178.2,178.11,13.48052923]
[1730234454300,2.8068,178.19,178.17,2.807]
[1730234454505,2.8068,178.19,178.11,13.48052923]
[1730234454802,2.8068,178.19,178.16,2.807]
[1730234459001,2.807,178.17,178.15,2.8072]
[1730234459601,7.694,178.2,178.11,13.48052923]
[1730234459908,2.807,178.17,178.14,2.8073]
[1730234461092,2.8073,178.15,178.12,2.8077]
[1730234461297,21.17452923,178.2,178.11,13.48052923]
[1730234461706,2.8071,178.17,178.14,2.8073]
[1730234462609,7.694,178.2,178.13,13.48052923]
[1730234463107,10.5005,178.2,178.17,2.8069]
[1730234463407,7.694,178.2,178.17,2.8069]
[1730234464314,9.100421,178.23,178.15,13.48052923]
[1730234464607,2.8063,178.22,178.17,2.8069]
[1730234464809,2.8063,178.22,178.15,13.48052923]
[1730234465210,2.806,178.24,178.17,13.48052923]
[1730234465512,19.84052923,178.26,178.17,13.48052923]
[1730234465704,6.36,178.27,178.17,13.48052923]
[1730234465910,2.8059,178.24,178.17,13.48052923]
[1730234466210,2.8059,178.24,178.21,2.8062]
[1730234466797,2.8063,178.22,178.19,2.8065]
[1730234466999,2.78242049,178.24,178.15,13.48052923]
[1730234467209,13.48052923,178.26,178.15,13.48052923]
[1730234467408,2.8063,178.21,178.18,2.8068]
[1730234467607,2.77315418,178.21,178.1,6.36]
[1730234467802,19.84052923,178.22,178.11,13.48052923]
[1730234468000,9.11153279,178.21,178.11,13.48052923]
[1730234468204,9.11153279,178.21,178.13,13.48052923]
[1730234468602,2.8066,178.2,178.17,2.8069]
[1730234470615,9.11153279,178.21,178.16,2.8071]
[1730234470616,2.8067,178.19,178.16,2.8071]
[1730234471512,13.48052923,178.19,178.09,13.48052923]
[1730234471718,2.5582,178.18,178.09,13.48052923]
[1730234472507,2.8074,178.15,178.12,2.8077]
[1730234472702,13.48052923,178.17,178.07,13.48052923]
[1730234474102,2.8076,178.13,178.1,2.808]
[1730234474713,2.8076,178.13,178.06,2.8086]
[1730234474714,2.808,178.11,178.06,2.8086]
[1730234474909,13.48052923,178.11,178.0,13.48052923]
[1730234475431,16.22289758,178.11,178.0,13.48052923]
[1730234475623,2.8085,178.08,178.05,2.8087]
[1730234476219,6.04,178.09,178.05,2.8087]
[1730234476409,8.8483,178.09,178.05,2.8087]
[1730234477017,2.8085,178.08,178.04,2.8089]
[1730234477216,6.04,178.09,178.04,2.8089]
[1730234477814,2.8086,178.07,178.03,2.8091]
[1730234478027,2.8086,178.07,178.0,13.48052923]
[1730234478209,2.8086,178.07,178.03,2.809]
[1730234478408,2.8087,178.06,178.03,2.809]
[1730234478616,13.48052923,178.06,177.98,13.48052923]
[1730234479015,2.809,178.05,177.98,13.48052923]
[1730234479324,13.48052923,178.06,178.01,2.8095]
[1730234479718,2.8089,178.05,178.01,2.8095]
[1730234480219,2.8089,178.05,178.02,2.8093]
[1730234480419,8.8489,178.05,178.02,2.8093]
[1730234481836,13.48052923,178.04,177.93,13.48052923]
[1730234482123,13.48052923,178.04,177.81,14.0632]
[1730234482124,13.48052923,178.02,177.91,13.48052923]
[1730234482931,16.28354081,178.02,177.91,13.48052923]
[1730234483117,16.28354081,178.02,177.97,2.81]
[1730234483118,2.8097,178.0,177.97,2.81]
[1730234484131,16.28354081,178.02,177.97,2.81]
[1730234484132,2.8095,178.01,177.97,2.81]
[1730234484611,16.28354081,178.02,177.91,13.48052923]
[1730234484809,2.8098,177.99,177.96,2.8102]
[1730234485321,6.04,178.0,177.98,2.8098]
[1730234487824,181.56136361,178.12,177.97,13.48052923]
[1730234488017,181.56136361,178.12,177.93,6.04]
[1730234488018,2.5498,178.09,177.99,13.48052923]
[1730234488220,18.83862923,178.09,178.02,2.8093]
[1730234488415,6.04,178.08,177.99,13.48052923]
[1730234489120,8.8485,178.08,177.99,13.48052923]
[1730234489322,6.04,178.08,177.99,13.48052923]
[1730234489521,6.04,178.08,177.95,5.6208]
[1730234489522,6.04,178.08,177.97,13.48052923]
[1730234489722,2.8087,178.07,177.97,13.48052923]
[1730234489928,13.48052923,178.07,177.97,13.48052923]
[1730234490622,13.48052923,178.07,177.95,13.48052923]
[1730234492228,2.8091,178.04,178.01,2.8095]
[1730234494125,2.8091,178.04,177.93,6.04]
[1730234494126,6.04,178.08,177.98,13.48052923]
[1730234494324,19.52052923,178.08,177.98,13.48052923]
[1730234494722,2.8087,178.06,178.01,2.8095]
[1730234494921,2.8087,178.06,177.98,13.48052923]
[1730234495329,2.8089,178.05,178.02,2.8092]
[1730234496533,19.52052923,178.08,177.99,2.8098]
[1730234496534,2.8093,178.03,177.99,2.8098]
[1730234497031,2.8094,178.02,177.99,2.8097]
[1730234497731,2.8094,178.02,177.94,13.48052923]
[1730234497732,2.8094,178.02,178.0,2.8096]
[1730234497937,5.74,178.03,178.0,2.8096]
[1730234498134,8.5493,178.03,178.0,2.8096]
[1730234498329,5.74,178.03,178.0,2.8096]
[1730234498531,5.74,178.03,177.94,13.48052923]
[1730234498825,2.8094,178.02,177.99,2.8098]
[1730234499337,13.48052923,178.02,177.91,7.849]
[1730234499633,2.8098,177.99,177.91,15.58952923]
[1730234500020,2.8098,177.99,177.97,2.8101]
[1730234500627,2.8097,178.0,177.97,2.8101]
[1730234502429,2.8098,177.99,177.91,15.58952923]
[1730234502634,13.48052923,178.02,177.91,15.58952923]
[1730234502931,15.63082923,178.02,177.91,15.58952923]
[1730234503135,2.8099,177.99,177.96,2.8101]
[1730234504134,19.22052923,177.98,177.73,2.80034535]
[1730234504435,2.1503,178.02,177.92,13.48052923]
[1730234504638,5.74,177.98,177.92,13.48052923]
[1730234505532,5.74,177.99,177.94,13.48052923]
[1730234505730,2.1503,178.02,177.97,13.48052923]
[1730234505927,7.8903,178.02,177.97,13.48052923]
[1730234506127,7.8903,178.02,177.99,2.8097]
[1730234506527,10.6996,178.02,177.95,13.48052923]
[1730234506721,7.8903,178.02,177.95,13.48052923]
[1730234507135,10.6997,178.02,177.95,13.48052923]
[1730234507635,7.8903,178.02,177.98,2.8098]
[1730234508226,7.8903,178.02,177.95,13.48052923]
[1730234508629,10.6996,178.02,177.95,13.48052923]
[1730234509642,10.6996,178.02,177.99,2.8098]
[1730234509939,7.8903,178.02,177.95,13.48052923]
[1730234510343,7.8903,178.02,178.0,2.8096]
[1730234510832,2.1503,178.02,178.0,2.8096]
[1730234511043,5.74,178.01,178.0,2.8096]
[1730234512238,4.193,178.04,177.99,13.48052923]
[1730234512441,2.0695,178.04,178.03,2.8092]
[1730234515539,5.74,178.05,178.04,2.809]
[1730234515733,5.74,178.05,178.0,13.48052923]
[1730234516437,5.74,178.05,178.04,2.8089]
[1730234517440,5.74,178.05,178.02,2.8092]
[1730234519545,5.74,178.05,178.01,2.8094]
[1730234520138,8.549,178.05,178.01,2.8094]
[1730234522748,8.549,178.05,177.97,13.48052923]
[1730234523742,8.549,178.05,178.01,2.8094]
[1730234525549,8.549,178.05,177.96,13.48052923]
[1730234525550,5.74,178.05,177.96,13.48052923]
[1730234526134,2.8091,178.04,178.01,2.8094]
[1730234526545,11.44649033,178.04,178.01,2.8094]
[1730234527250,5.44,178.05,178.02,8.63739033]
[1730234527446,8.63739033,178.08,178.02,8.63739033]
[1730234527648,5.44,178.07,178.02,8.63739033]
[1730234527951,11.44619033,178.06,178.03,2.8091]
[1730234529247,16.88619033,178.06,178.03,2.8091]
[1730234530036,11.44639033,178.05,178.02,2.8092]
[1730234532448,2.8091,178.04,178.01,2.8094]
[1730234532647,11.41294029,178.03,177.97,8.63739033]
[1730234532851,8.63739033,178.03,177.97,8.63739033]
[1730234533052,11.44669033,178.03,178.01,2.8095]
[1730234533549,14.21661779,178.03,178.01,2.8095]
[1730234533948,8.2491,178.04,178.02,2.8093]
[1730234534851,4.1356,178.09,178.0,8.63739033]
[1730234535044,5.44,178.05,178.0,8.63739033]
[1730234535653,8.2489,178.05,178.0,8.63739033]
[1730234536453,8.2489,178.05,178.02,2.8092]
[1730234536653,5.44,178.05,178.0,8.63739033]
[1730234537256,14.07739033,178.05,178.0,8.63739033]
[1730234538058,16.88629033,178.05,178.02,2.8092]
[1730234538553,16.88629033,178.05,178.0,8.63739033]
[1730234539858,16.88629033,178.05,178.02,2.8092]
[1730234542562,16.88629033,178.05,178.03,2.8091]
[1730234543662,9.72105355,178.08,178.02,8.63739033]
[1730234543857,26.04904388,178.1,178.07,2.8084]
[1730234544058,23.79844388,178.1,178.0,5.44]
[1730234544366,9.72105355,178.09,178.05,8.63739033]
[1730234544662,8.63739033,178.09,178.07,2.8084]
[1730234545455,8.63739033,178.09,178.04,8.63739033]
[1730234545456,9.72105355,178.11,178.1,2.8081]
[1730234545755,8.63739033,178.11,178.01,6.6747]
[1730234545957,11.44579033,178.09,178.06,2.8086]
[1730234546366,8.63739033,178.09,178.06,2.8086]
[1730234546562,11.44569033,178.09,178.06,2.8086]
[1730234546768,8.63739033,178.07,177.99,5.44]
[1730234546962,8.63739033,178.06,178.02,8.63739033]
[1730234547868,18.35844388,178.09,178.03,8.63739033]
[1730234548058,8.63739033,178.09,178.03,8.63739033]
[1730234548263,8.20949066,178.1,177.99,5.44]
[1730234548264,5.44,178.1,178.07,8.63739033]
[1730234548464,18.35844388,178.12,178.07,8.63739033]
[1730234548769,18.35844388,178.11,178.06,8.63739033]
[1730234548962,18.35844388,178.1,177.99,11.0594]
[1730234549164,21.18576968,178.09,178.04,8.63739033]
[1730234549467,9.72105355,178.08,178.06,2.8086]
[1730234549968,2.8084,178.08,178.04,2.8089]
[1730234550170,2.8084,178.08,178.03,8.63739033]
[1730234551169,2.8084,178.08,178.05,2.8088]
[1730234551682,8.63739033,178.07,178.04,2.8089]
[1730234552169,8.63739033,178.07,178.04,2.809]
[1730234552373,8.63739033,178.07,178.03,8.63739033]
[1730234552968,8.63739033,178.07,178.05,2.8087]
[1730234554380,8.63739033,178.07,178.04,2.809]
[1730234554582,8.63739033,178.06,178.04,2.809]
[1730234555079,8.63739033,178.06,178.02,2.8092]
[1730234555482,8.63739033,178.04,178.0,8.63739033]
[1730234555671,8.63739033,178.04,178.03,2.8092]
[1730234555879,5.44,178.09,178.0,8.63739033]
[1730234556072,8.63739033,178.06,178.0,8.63739033]
[1730234556665,8.63739033,178.07,178.01,8.63739033]
[1730234558171,8.63739033,178.07,178.04,2.8089]
[1730234560483,8.63739033,178.07,178.02,2.8092]
[1730234560682,8.63739033,178.07,178.01,8.63739033]
[1730234561082,8.63739033,178.07,178.04,2.8089]
[1730234561779,11.44599033,178.07,178.04,2.8089]
[1730234562582,8.63739033,178.06,178.04,2.8089]
[1730234564186,8.63739033,178.06,178.03,2.8091]
[1730234564490,8.2898095,178.09,177.98,8.63739033]
[1730234564491,11.44649033,178.04,177.98,8.63739033]
[1730234565089,11.44649033,178.04,178.0,2.8095]
[1730234565280,11.44649033,178.04,177.98,8.63739033]
[1730234566282,11.44649033,178.04,178.01,2.8094]
[1730234568397,8.63739033,178.04,178.02,2.8093]
[1730234569188,8.63739033,178.04,178.0,8.63739033]
[1730234569385,11.44639033,178.04,178.01,2.8094]
[1730234571506,8.63739033,178.04,177.96,6.6188]
[1730234571693,8.63739033,178.0,177.95,8.63739033]
[1730234571998,11.42093928,178.0,177.95,8.63739033]
[1730234572196,11.42093928,178.0,177.98,2.8099]
[1730234572697,11.42093928,178.0,177.97,2.81]
[1730234574004,2.78354895,178.0,177.96,8.63739033]
[1730234574197,8.63739033,178.01,177.98,2.8098]
[1730234574508,2.81341393,178.0,177.98,2.8098]
[1730234576407,9.72105355,178.02,178.01,2.8095]
[1730234576609,8.63739033,178.04,178.0,8.63739033]
[1730234576998,8.63739033,178.04,177.98,8.63739033]
[1730234577409,8.63739033,178.04,178.0,2.8095]
[1730234578012,11.44659033,178.04,178.0,2.8095]
[1730234579613,11.44659033,178.04,178.0,11.44689033]
[1730234580812,11.44659033,178.04,178.0,2.8095]
[1730234581115,8.63739033,178.03,178.0,2.8096]
[1730234581705,11.44659033,178.03,178.0,2.8096]
[1730234583221,11.44649033,178.04,177.98,8.63739033]
[1730234584011,21.16754388,178.04,177.99,2.8097]
[1730234584318,9.72105355,178.03,177.98,8.63739033]
[1730234584703,11.44649033,178.04,178.0,2.8095]
[1730234585711,8.63739033,178.03,178.0,2.8095]
[1730234587208,2.8091,178.04,178.01,2.8095]
[1730234587410,11.44649033,178.04,178.01,2.8095]
[1730234591716,9.72105355,178.06,178.0,8.63739033]
[1730234591917,9.72105355,178.06,178.01,8.63739033]
[1730234592216,8.63739033,178.06,178.01,8.63739033]
[1730234592608,8.63739033,178.06,177.96,5.24]
[1730234592609,21.16724388,178.06,177.96,5.24]
[1730234592809,9.72105355,178.05,178.0,8.63739033]
[1730234593015,2.8089,178.05,178.02,2.8092]
[1730234593611,21.16724388,178.06,178.02,2.8092]
[1730234594217,21.16724388,178.06,177.96,5.24]
[1730234594218,11.44639033,178.04,178.01,2.8094]
[1730234595316,8.63739033,178.02,177.97,8.63739033]
[1730234596219,8.63739033,178.04,177.98,8.63739033]
[1730234596414,8.63739033,178.05,178.0,8.63739033]
[1730234596813,11.44629033,178.05,178.02,2.8093]
[1730234597628,21.16734388,178.05,178.02,2.8093]
[1730234597821,9.72105355,178.04,178.02,2.8093]
[1730234598207,18.35844388,178.04,177.96,5.24]
[1730234598413,9.72105355,178.03,178.01,2.8094]
[1730234598817,11.44649033,178.04,178.01,2.8094]
[1730234600121,11.44649033,178.04,177.98,8.63739033]
[1730234600330,11.44649033,178.04,178.0,2.8096]
[1730234600510,8.63739033,178.02,178.0,2.8096]
[1730234600714,8.63739033,178.02,177.97,8.63739033]
[1730234600924,8.63739033,178.02,177.99,2.8097]
[1730234601314,8.63739033,178.02,178.0,2.8096]
[1730234605435,8.63739033,178.03,178.0,2.8096]
[1730234612021,8.63739033,178.03,178.01,2.8094]
[1730234615927,8.63739033,178.02,177.97,2.81]
[1730234616140,8.63739033,178.01,177.96,13.87739033]
[1730234616431,8.63739033,177.98,177.97,2.8101]
[1730234617038,8.63739033,177.99,177.97,2.8101]
[1730234618438,8.63739033,177.99,177.98,2.81]
[1730234619043,2.86606688,178.0,177.99,2.8098]
[1730234619333,8.63739033,178.02,177.99,2.8098]
[1730234619634,18.35844388,178.02,177.99,2.8098]
[1730234619835,9.72105355,178.01,177.99,2.8098]
[1730234620037,2.77727129,178.0,177.99,2.8098]
[1730234620428,11.44669033,178.02,177.99,2.8098]
[1730234621729,8.63739033,178.02,177.99,2.8098]
[1730234623437,11.44669033,178.02,177.99,2.8098]
[1730234626638,11.44679033,178.02,177.99,2.8098]
[1730234631538,9.72105355,178.06,178.0,8.63739033]
[1730234631740,2.1117,178.08,178.0,8.63739033]
[1730234631741,9.72105355,178.08,178.05,8.63739033]
[1730234631946,8.63739033,178.14,178.07,8.63739033]
[1730234632249,8.63739033,178.12,178.08,8.63739033]
[1730234632548,11.48622847,178.12,178.08,8.63739033]
[1730234633339,11.48622847,178.12,178.09,2.8082]
[1730234633737,8.63739033,178.1,178.07,2.8085]
[1730234634746,11.41759376,178.11,178.06,8.63739033]
[1730234634949,11.41759376,178.11,178.09,2.8082]
[1730234640251,8.63739033,178.1,178.07,2.8084]
[1730234640651,8.63739033,178.1,178.04,13.85739033]
[1730234640955,8.63739033,178.1,178.07,2.8085]
[1730234643254,8.63739033,178.1,178.08,2.8083]
[1730234643457,9.72105355,178.14,178.08,8.63739033]
[1730234643656,55.7020332,179.52,178.08,8.63739033]
[1730234643657,8.63739033,178.13,178.08,8.63739033]
[1730234643856,8.63739033,178.14,178.08,8.63739033]
[1730234644549,8.63739033,178.14,178.04,10.8378]
[1730234644752,8.63739033,178.1,178.05,13.85739033]
[1730234644957,8.63739033,178.1,178.07,2.8084]
[1730234645562,8.63739033,178.1,178.04,5.2]
[1730234645563,8.63739033,178.08,178.04,5.2]
[1730234645748,8.63739033,178.08,178.04,13.83739033]
[1730234645947,8.63739033,178.09,178.04,13.83739033]
[1730234646762,8.63739033,178.08,178.03,13.83739033]
[1730234647364,8.63739033,178.08,178.05,2.8088]
[1730234647758,11.44569033,178.09,178.04,8.63739033]
[1730234649162,9.72105355,178.12,178.09,2.8082]
[1730234649461,8.63739033,178.11,178.09,2.8082]
[1730234649652,8.63739033,178.11,178.06,8.63739033]
[1730234649857,8.63739033,178.11,178.08,2.8083]
[1730234650561,9.72105355,178.12,178.08,8.63739033]
[1730234650757,2.8076,178.13,178.08,8.63739033]
[1730234651565,2.8076,178.13,178.09,2.8082]
[1730234652371,11.44489033,178.14,178.1,2.808]
[1730234654681,2.8081,178.1,178.07,2.8084]
[1730234654872,8.63739033,178.11,178.05,13.83739033]
[1730234655175,11.47969135,178.12,178.07,8.63739033]
[1730234655372,8.63739033,178.12,178.07,8.63739033]
[1730234655568,2.808,178.11,178.07,2.8085]
[1730234655771,8.63739033,178.1,178.07,2.8085]
[1730234656172,8.63739033,178.1,178.08,2.8083]
[1730234657174,8.63739033,178.1,178.05,13.83739033]
[1730234657175,8.63739033,178.1,178.07,2.8085]
[1730234657473,8.63739033,178.1,178.05,13.83739033]
[1730234658271,2.808,178.11,178.07,11.44579033]
[1730234658472,9.72105355,178.11,178.07,8.63739033]
[1730234658680,9.72105355,178.11,178.08,2.8083]
[1730234659063,11.45271815,178.12,178.08,2.8083]
[1730234659982,14.26051815,178.12,178.09,2.8082]
[1730234660176,11.45271815,178.12,178.07,8.63739033]
[1730234660384,18.35844388,178.13,178.09,8.63739033]
[1730234660680,18.35844388,178.12,178.09,2.8081]
[1730234660879,8.63739033,178.12,178.09,2.8081]
[1730234662478,20.91960496,178.12,178.09,2.8081]
[1730234662674,11.44519033,178.12,178.09,2.8081]
[1730234664875,8.63739033,178.12,178.09,2.8081]
[1730234666689,11.44519033,178.12,178.09,2.8081]
[1730234667786,2.8078,178.12,178.09,2.8081]
[1730234668580,14.96042534,178.18,178.14,2.8074]
[1730234668782,8.63739033,178.16,178.11,8.63739033]
[1730234668986,8.63739033,178.16,178.1,13.83739033]
[1730234669389,11.44459033,178.16,178.12,2.8077]
[1730234670394,8.63739033,178.16,178.13,2.8075]
[1730234670990,18.11052984,178.16,178.13,2.8075]
[1730234671191,9.47313951,178.15,178.13,2.8075]
[1730234671496,8.63739033,178.16,178.13,2.8075]
[1730234673087,11.44449033,178.16,178.13,2.8075]
[1730234673295,20.91762984,178.16,178.13,2.8075]
[1730234673498,9.47313951,178.15,178.13,2.8075]
[1730234673887,11.44449033,178.16,178.13,2.8075]
[1730234675193,11.44449033,178.16,178.12,2.8077]
[1730234675800,8.63739033,178.14,178.12,2.8077]
[1730234676295,8.63739033,178.13,178.11,2.8079]
[1730234677002,8.63739033,178.12,177.98,7.7028]
[1730234677192,8.63739033,178.09,178.05,8.63739033]
[1730234678005,2.8079,178.11,178.05,8.63739033]
[1730234678191,8.63739033,178.11,178.06,8.63739033]
[1730234678500,8.63739033,178.11,178.08,2.8084]
[1730234679890,11.44529033,178.11,178.08,2.8084]
[1730234680997,8.63739033,178.11,178.08,2.8084]
[1730234681502,8.63739033,178.11,178.09,2.8081]
[1730234681703,11.42327414,178.12,178.09,2.8081]
[1730234682004,18.11834154,178.12,178.09,2.8081]
[1730234682204,9.48095121,178.11,178.09,2.8081]
[1730234683099,14.19293077,178.12,178.09,2.8081]
[1730234691401,2.8077,178.13,178.09,2.8081]
[1730234691602,11.44509033,178.13,178.09,2.8081]
[1730234692517,2.8078,178.12,178.09,2.8081]
[1730234696815,8.63739033,178.13,178.08,8.63739033]
[1730234697023,8.63739033,178.13,178.1,2.808]
[1730234699411,11.44499033,178.13,178.1,2.808]
[1730234699922,8.63739033,178.13,178.09,2.8081]
[1730234700525,8.63739033,178.11,178.02,5.6186]
[1730234700725,8.63739033,178.04,177.98,2.0832]
[1730234700933,8.63739033,178.04,177.99,8.63739033]
[1730234701827,8.63739033,178.04,178.01,2.8094]
[1730234702333,9.48095121,178.08,178.02,8.63739033]
[1730234702524,5.2,178.17,178.01,5.2]
[1730234702525,9.51575011,178.14,178.07,8.63739033]
[1730234702730,9.51575011,178.14,178.1,8.63739033]
[1730234702929,22.54434044,178.15,178.06,5.2]
[1730234703232,8.63739033,178.13,178.09,8.63739033]
[1730234703534,8.63739033,178.13,178.1,2.808]
[1730234704129,8.63739033,178.13,178.11,2.8079]
[1730234704731,8.63739033,178.13,178.09,8.63739033]
[1730234705038,4.3912,178.15,178.11,8.63739033]
[1730234705341,13.02859033,178.15,178.04,5.618]
[1730234705528,13.02859033,178.15,178.1,8.63739033]
[1730234706335,13.02859033,178.15,178.12,2.8077]
[1730234706544,4.3912,178.15,178.12,2.8077]
[1730234707237,13.02859033,178.15,178.1,8.63739033]
[1730234707942,13.02859033,178.15,178.12,2.8077]
[1730234711732,13.02859033,178.15,178.11,2.8078]
[1730234711947,8.63739033,178.13,178.1,8.63739033]
[1730234712539,8.63739033,178.13,178.11,2.8079]
[1730234712742,15.83589033,178.15,178.11,2.8079]
[1730234713547,13.02859033,178.15,178.12,2.8077]
[1730234715460,8.63739033,178.13,178.05,5.2]
[1730234715649,8.63739033,178.1,178.05,8.63739033]
[1730234716657,8.63739033,178.07,177.96,6.6425]
[1730234716952,8.63739033,178.07,178.02,8.63739033]
[1730234717145,8.63739033,178.07,178.04,2.8089]
[1730234718053,8.63739033,178.07,178.02,8.63739033]
[1730234718254,8.63739033,178.07,178.05,2.8089]
[1730234718951,8.63739033,178.06,178.03,2.8091]
[1730234719144,8.63739033,178.04,177.99,5.18]
[1730234719348,8.63739033,178.04,178.0,8.63739033]
[1730234719751,8.63739033,178.04,178.03,2.8092]
[1730234720146,11.44649033,178.04,177.99,2.8097]
[1730234720349,8.63739033,178.01,177.99,2.8097]
[1730234720652,8.63739033,178.01,177.97,2.8101]
[1730234720852,8.63739033,178.0,177.97,2.8101]
[1730234721558,8.63739033,177.98,177.95,2.8104]
[1730234721755,8.63739033,177.97,177.92,247.47150723]
[1730234721948,2.1484,178.0,177.83,5.6245]
[1730234722147,8.63739033,177.94,177.88,8.63739033]
[1730234722451,8.63739033,177.93,177.88,8.63739033]
[1730234722654,8.63739033,177.93,177.9,2.8111]
[1730234723758,8.63739033,177.91,177.83,5.18]
[1730234723954,8.63739033,177.9,177.85,8.63739033]
[1730234724258,2.8109,177.92,177.87,8.63739033]
[1730234724259,8.63739033,177.91,177.87,8.63739033]
[1730234724558,5.18,177.93,177.88,2.8115]
[1730234724757,2.83637546,177.92,177.88,2.8115]
[1730234725154,5.18,177.93,177.9,2.8111]
[1730234725362,7.937892,177.93,177.84,13.50115275]
[1730234725858,5.09,178.01,177.89,13.50115275]
[1730234726157,5.18,177.99,177.89,13.50115275]
[1730234726853,5.18,177.99,177.92,2.8109]
[1730234727050,7.9898,177.99,177.89,13.50115275]
[1730234727462,2.8101,177.98,177.89,13.50115275]
[1730234727656,5.18,177.99,177.89,13.50115275]
[1730234727855,5.18,177.99,177.91,13.50115275]
[1730234728256,4.4566,178.01,177.94,13.50115275]
[1730234728562,2.2805,178.01,177.94,13.50115275]
[1730234729264,2.2805,178.01,177.97,2.81]
[1730234732757,2.2805,178.01,177.94,13.50115275]
[1730234732959,16.31085275,178.0,177.95,2.8103]
[1730234733759,2.8098,177.99,177.95,2.8103]
[1730234734158,2.2805,178.01,177.95,2.8103]
[1730234734457,5.0901,178.01,177.95,2.8103]
[1730234735059,5.0901,178.01,177.93,5.18]
[1730234735356,2.2805,178.01,177.93,5.18]
[1730234735750,2.2805,178.01,177.97,2.81]
[1730234735950,2.2805,178.01,177.94,13.50115275]
[1730234736254,2.2805,178.01,177.98,2.8098]
[1730234736762,2.2805,178.01,177.94,13.50115275]
[1730234738261,2.2805,178.01,177.98,2.8099]
[1730234739659,2.848678,178.02,177.98,2.8099]